bitfinex-derivatives/quotes_ETHF0:USTF0_20240818
["timestamp","ask_amount","ask_price","bid_price","bid_amount"]
[1724018616374,2.90570819,2653.6,2653.5,4.16385]
[1724018616876,3.38999289,2653.8,2653.6,1.88378]
[1724018617081,4.40859586,2654.1,2654.0,1.8835]
[1724018617281,4.40859586,2654.1,2654.0,11.1393]
[1724018617989,4.41322903,2654.1,2654.0,11.1393]
[1724018618181,4.41322903,2654.1,2654.0,5.0913]
[1724018618788,4.41322903,2654.1,2654.0,8.8593]
[1724018620090,4.41322903,2654.1,2654.0,9.5026]
[1724018621689,4.41322903,2654.1,2654.0,5.0913]
[1724018621892,4.41322903,2654.1,2654.0,3.2078]
[1724018623388,4.41322903,2654.1,2654.0,5.0913]
[1724018623783,4.41322903,2654.1,2654.0,3.2078]
[1724018624490,1.88355,2654.0,2653.6,7.3751041]
[1724018624694,1.88361,2653.9,2653.6,2.2835241]
[1724018624897,0.6947,2653.8,2653.6,2.2835241]
[1724018625187,0.6947,2653.8,2653.6,4.1672741]
[1724018625392,0.6875,2653.7,2653.6,4.1672741]
[1724018626484,0.6875,2653.7,2653.6,2.2835241]
[1724018627091,0.6875,2653.7,2653.6,4.1673041]
[1724018628597,0.6947,2653.8,2653.7,1.88371]
[1724018628891,0.6947,2653.8,2653.6,2.2835241]
[1724018629189,2.57838,2653.8,2653.6,2.2835241]
[1724018629588,1.88371,2653.7,2653.6,2.2835241]
[1724018629890,0.6947,2653.8,2653.6,2.2835241]
[1724018630280,1.88371,2653.7,2653.6,2.2835241]
[1724018630502,5.65171,2653.7,2653.6,0.0035241]
[1724018630789,10.65171,2653.7,2653.6,0.0035241]
[1724018631094,12.53542,2653.7,2653.6,0.0035241]
[1724018631295,10.65171,2653.7,2653.6,0.0035241]
[1724018631592,5.65171,2653.7,2653.6,0.0035241]
[1724018631993,0.6947,2653.8,2653.6,0.0035241]
[1724018631994,2.57837,2653.8,2653.6,0.0035241]
[1724018632292,0.6947,2653.8,2653.6,0.0035241]
[1724018632495,2.57839,2653.8,2653.6,0.0035241]
[1724018632690,2.57839,2653.8,2653.6,1.8872941]
[1724018633190,0.6947,2653.8,2653.7,1.88371]
[1724018633786,1.88371,2653.7,2653.6,2.2835241]
[1724018634083,0.6947,2653.8,2653.6,1.8873041]
[1724018634084,4.4627,2653.8,2653.6,1.8873041]
[1724018634394,1.88371,2653.7,2653.6,0.0035241]
[1724018634792,5.65171,2653.7,2653.6,0.0035241]
[1724018635785,5.65171,2653.7,2652.9,3.2078]
[1724018635786,8.85951,2653.7,2652.9,3.2078]
[1724018635988,3.2078,2653.4,2652.6,0.00566113]
[1724018636195,1.88409,2653.2,2652.9,1.88425]
[1724018636586,1.88409,2653.2,2652.6,0.00566113]
[1724018636587,3.2078,2653.7,2653.2,1.88403]
[1724018636786,2.53477,2653.4,2653.1,1.88409]
[1724018636993,0.6508,2653.4,2652.8,2.28319457]
[1724018637187,1.88409,2653.2,2653.0,1.88416]
[1724018637591,0.6589,2653.1,2653.0,1.88416]
[1724018637994,4.4285,2653.1,2653.0,1.88416]
[1724018639487,4.4285,2653.1,2653.0,1.88421]
[1724018639888,4.4285,2653.1,2652.9,1.88425]
[1724018640086,1.88421,2653.0,2652.8,1.88750457]
[1724018640289,2.54307,2653.1,2652.8,0.00319457]
[1724018640489,2.54307,2653.1,2652.9,1.88422]
[1724018640700,0.6589,2653.1,2653.0,1.88421]
[1724018641191,4.4285,2653.1,2653.0,1.88421]
[1724018641497,6.31264,2653.1,2652.9,1.88423]
[1724018641692,1.88428,2652.9,2652.8,0.00319457]
[1724018641885,5.65388,2652.9,2652.8,1.88754457]
[1724018642101,0.6589,2653.1,2653.0,1.88421]
[1724018642502,4.4285,2653.1,2653.0,1.88421]
[1724018642793,4.4285,2653.1,2652.9,1.88424]
[1724018643189,6.31267,2653.1,2652.9,1.88424]
[1724018643395,4.4285,2653.1,2652.8,1.88751457]
[1724018643593,2.54306,2653.1,2652.8,0.00319457]
[1724018643793,1.88424,2653.0,2652.8,0.00319457]
[1724018644001,5.65384,2653.0,2652.8,0.00319457]
[1724018644294,3.7696,2652.9,2652.8,0.00319457]
[1724018644502,3.7696,2652.9,2652.8,1.88754457]
[1724018645398,0.6589,2653.1,2652.9,1.88425]
[1724018645586,0.6589,2653.1,2653.0,1.88421]
[1724018645787,3.8586,2653.4,2652.8,2.28319457]
[1724018645988,3.8586,2653.4,2653.3,1.88399]
[1724018646489,3.2078,2653.4,2653.3,1.88399]
[1724018647089,3.2078,2653.7,2653.6,1.88378]
[1724018647292,0.6614,2653.9,2653.4,1.3915]
[1724018647503,1.88367,2653.8,2653.4,2.56849]
[1724018647699,0.685,2653.7,2653.6,1.88378]
[1724018647900,0.71273317,2654.1,2653.4,5.77628]
[1724018648095,0.71273317,2654.1,2653.8,1.88362]
[1724018648294,0.71273317,2654.1,2653.5,0.6734]
[1724018648691,0.71273317,2654.1,2653.9,1.88354]
[1724018648991,0.71273317,2654.1,2654.0,1.8835]
[1724018649396,3.77263317,2654.1,2653.7,3.2078]
[1724018649702,1.88362,2653.9,2653.5,0.6734]
[1724018649908,1.88809317,2654.1,2653.9,1.88356]
[1724018650091,0.00463317,2654.1,2654.0,1.8835]
[1724018650998,0.00463317,2654.1,2653.9,1.88354]
[1724018651198,5.65610317,2654.1,2653.8,1.88361]
[1724018651400,0.00463317,2654.1,2653.8,1.88361]
[1724018651600,1.88810317,2654.1,2653.9,1.88354]
[1724018652103,0.00463317,2654.1,2654.0,3.2138]
[1724018652410,0.00463317,2654.1,2654.0,2.5511]
[1724018652595,3.77263317,2654.1,2653.6,0.6627]
[1724018652797,0.00463317,2654.1,2653.6,0.6627]
[1724018653215,0.00463317,2654.1,2653.9,1.88354]
[1724018653500,0.00463317,2654.1,2653.8,1.88357]
[1724018653707,1.88810317,2654.1,2653.8,1.88359]
[1724018653900,1.88810317,2654.1,2653.9,1.88355]
[1724018654097,1.8835,2654.0,2653.8,1.88362]
[1724018654494,6.9758,2653.9,2653.4,3.2078]
[1724018654696,6.9758,2653.9,2653.6,1.88372]
[1724018654697,2.67015602,2653.8,2653.6,1.88372]
[1724018654994,0.7166,2653.8,2653.6,1.88373]
[1724018655205,0.7166,2653.8,2653.4,3.2078]
[1724018655206,1.88385,2653.5,2653.4,3.2078]
[1724018655403,1.88386,2653.5,2653.1,4.8859]
[1724018655619,1.88382,2653.6,2653.3,1.88398]
[1724018655809,3.83737602,2653.6,2653.3,1.88398]
[1724018656002,1.88385,2653.5,2653.3,1.88398]
[1724018656198,1.95355602,2653.6,2653.2,1.88402]
[1724018656401,3.83737602,2653.6,2653.3,1.88399]
[1724018656600,1.95355602,2653.6,2653.3,1.88399]
[1724018656803,3.83738602,2653.6,2653.3,1.88399]
[1724018657106,3.83743602,2653.5,2653.2,1.88406]
[1724018657312,1.88388,2653.5,2653.3,1.88398]
[1724018657505,1.88388,2653.5,2653.2,1.88404]
[1724018657704,1.88393,2653.4,2653.2,1.88404]
[1724018657906,1.8839,2653.5,2653.2,1.88404]
[1724018658111,1.95355602,2653.5,2653.2,1.88404]
[1724018658411,1.95355602,2653.5,2653.1,4.8859]
[1724018658604,1.88402,2653.3,2653.1,0.7099]
[1724018658804,5.65282,2653.3,2653.1,2.59402]
[1724018659104,5.65282,2653.3,2653.1,0.7099]
[1724018659515,1.88406,2653.2,2653.1,0.7099]
[1724018659708,1.88392,2653.4,2653.1,0.7099]
[1724018660317,1.88406,2653.2,2653.1,0.7099]
[1724018660608,6.9766,2653.2,2652.8,0.00319457]
[1724018660810,3.2078,2653.2,2652.9,1.88424]
[1724018661017,1.88417,2653.1,2652.8,0.00319457]
[1724018661212,1.3626,2653.1,2652.8,0.00319457]
[1724018661415,1.88424,2653.0,2652.8,0.00319457]
[1724018661714,1.3626,2653.1,2652.8,0.00319457]
[1724018661916,5.20033602,2653.1,2652.8,0.00319457]
[1724018662209,1.88424,2653.0,2652.8,0.00319457]
[1724018662808,1.88428,2652.9,2652.8,0.00319457]
[1724018663112,3.83783602,2652.9,2652.8,0.00319457]
[1724018663302,7.8359915,2652.9,2652.8,0.00319457]
[1724018664009,5.88243548,2652.9,2652.8,0.00319457]
[1724018664216,7.84211514,2652.9,2652.8,0.00319457]
[1724018664817,1.88442,2652.7,2652.6,0.00566113]
[1724018665009,5.72848793,2652.7,2652.6,0.00566113]
[1724018665200,8.24524,2652.7,2652.6,0.00566113]
[1724018665403,15.4334251,2652.7,2652.6,0.00566113]
[1724018665605,13.47377717,2652.7,2652.6,0.00566113]
[1724018665801,11.58935717,2652.7,2652.6,0.00937369]
[1724018666110,11.58935717,2652.7,2652.6,1.89386369]
[1724018666111,5.95708417,2652.7,2652.6,1.89386369]
[1724018666314,3.99813717,2652.7,2652.6,1.89386369]
[1724018666710,5.88255717,2652.7,2652.6,0.00937369]
[1724018667416,7.84151686,2652.7,2652.6,0.00937369]
[1724018669226,7.84151512,2652.7,2652.6,0.00937369]
[1724018669915,3.99814812,2652.7,2652.6,0.00937369]
[1724018670105,5.88256812,2652.7,2652.6,0.00937369]
[1724018671117,9.72593512,2652.7,2652.6,0.00937369]
[1724018671715,1.88477,2652.3,2652.1,5.09263]
[1724018672320,1.88477,2652.3,2652.1,1.88483]
[1724018672614,1.88477,2652.3,2652.1,1.88954454]
[1724018673119,1.88477,2652.3,2652.1,0.00471454]
[1724018673120,1.88478,2652.2,2652.1,0.00471454]
[1724018673318,5.66006754,2652.2,2652.1,0.00471454]
[1724018680626,12.54484754,2652.2,2652.1,0.00471454]
[1724018680944,1.88492,2652.0,2651.9,0.00566113]
[1724018681115,5.65612,2652.0,2651.9,0.00566113]
[1724018681317,7.54104,2652.0,2651.9,0.00566113]
[1724018681512,12.54104,2652.0,2651.9,0.00566113]
[1724018682020,12.54104,2652.0,2651.9,1e-08]
[1724018682021,17.21653513,2652.0,2651.9,1e-08]
[1724018682422,19.10145513,2652.0,2651.9,1e-08]
[1724018682723,19.91376,2652.0,2651.9,1e-08]
[1724018683018,20.14240809,2652.0,2651.9,1e-08]
[1724018683209,20.14240809,2652.0,2650.8,0.7405]
[1724018683210,1.88541,2651.4,2651.1,1.88551]
[1724018683409,1.88544,2651.3,2651.1,1.88551]
[1724018684214,1.8853,2651.5,2651.3,1.88537]
[1724018684416,1.4476,2651.6,2651.1,0.00356379]
[1724018684623,1.4476,2651.6,2651.5,1.88527]
[1724018685820,5.97011,2651.8,2651.2,2.61004]
[1724018686026,5.97011,2651.8,2651.6,1.88516]
[1724018686327,4.085,2651.8,2651.7,1.88513]
[1724018686623,2.59453,2651.9,2651.7,1.88513]
[1724018686924,1.88506,2651.8,2651.7,1.88513]
[1724018687529,1.88506,2651.8,2651.6,1.88518]
[1724018687722,1.88506,2651.8,2651.2,2.61004]
[1724018687920,1.88513,2651.7,2651.6,1.88514]
[1724018688825,1.88508,2651.8,2651.7,1.88513]
[1724018689820,0.00488754,2652.2,2651.4,3.2078]
[1724018690021,0.00488754,2652.2,2652.0,1.88489]
[1724018690225,1.88969754,2652.2,2652.0,1.88489]
[1724018690524,1.88485,2652.1,2652.0,1.88489]
[1724018690825,3.27338113,2652.5,2652.4,1.88463]
[1724018690826,0.00566113,2652.5,2652.4,1.88463]
[1724018691121,0.00566113,2652.5,2652.3,1.88468]
[1724018691323,0.00566113,2652.5,2652.4,1.88463]
[1724018691818,0.01033511,2652.5,2652.4,1.88463]
[1724018692626,0.01033511,2652.5,2652.3,1.88467]
[1724018692815,0.01033511,2652.5,2652.2,0.73]
[1724018693019,0.01033511,2652.5,2652.4,1.88463]
[1724018697336,0.01033511,2652.5,2652.4,5.65503]
[1724018700928,0.01033511,2652.5,2652.4,10.65503]
[1724018701231,1.46507579,2653.1,2653.0,1.88421]
[1724018701432,3.2078,2653.2,2653.0,1.88418]
[1724018701654,3.2078,2653.2,2653.1,0.6716]
[1724018701937,3.2078,2653.2,2653.1,2.55574]
[1724018702232,3.2078,2653.2,2653.1,4.44490993]
[1724018702233,3.21150399,2653.2,2653.1,4.44490993]
[1724018702434,5.09556399,2653.2,2653.1,0.67610993]
[1724018702635,10.32943978,2653.2,2653.1,0.00450993]
[1724018702841,6.56063978,2653.2,2653.1,0.00450993]
[1724018703133,5.09556399,2653.2,2653.1,0.00450993]
[1724018703335,6.56063978,2653.2,2653.1,0.00450993]
[1724018703924,3.35283978,2653.2,2653.1,0.00450993]
[1724018704124,5.23689978,2653.2,2653.1,0.00450993]
[1724018704336,7.35042607,2653.2,2653.1,0.00450993]
[1724018704535,7.54062399,2653.2,2653.1,0.00450993]
[1724018704938,7.76941119,2653.2,2653.1,0.00450993]
[1724018705138,7.76941119,2653.2,2652.9,0.00566113]
[1724018705139,3.76842,2653.0,2652.9,0.00566113]
[1724018705346,10.95735753,2653.0,2652.9,0.00566113]
[1724018705638,9.72695753,2653.0,2652.9,0.00566113]
[1724018705852,9.49817033,2653.0,2652.9,0.00566113]
[1724018706038,7.84274124,2653.0,2652.9,0.00566113]
[1724018706230,7.84274124,2653.0,2652.9,0.00884302]
[1724018706426,17.93475124,2653.0,2652.9,0.00884302]
[1724018706734,15.97460091,2653.0,2652.9,0.00884302]
[1724018707243,14.26200392,2653.0,2652.9,0.00884302]
[1724018707431,11.35165448,2653.0,2652.9,0.00884302]
[1724018707630,13.80266745,2653.0,2652.9,0.00884302]
[1724018707831,5.88259091,2653.0,2652.9,0.00884302]
[1724018708243,0.22878091,2653.0,2652.9,1.89312302]
[1724018708547,1.69959747,2653.0,2652.9,0.00884302]
[1724018708734,3.30098,2653.1,2652.9,1.89312302]
[1724018708735,2.17291656,2653.1,2652.9,1.89312302]
[1724018708931,2.17291656,2653.1,2652.9,1.89308302]
[1724018709129,5.94251656,2653.1,2652.9,0.00884302]
[1724018709345,3.35502656,2653.0,2652.9,0.00884302]
[1724018709841,3.35502656,2653.0,2652.9,1.89312302]
[1724018709842,1.47079898,2653.0,2652.9,1.89312302]
[1724018710044,2.17480297,2653.2,2653.1,1.88414]
[1724018710337,2.17480297,2653.2,2653.0,2.60447]
[1724018710338,4.05889297,2653.2,2653.0,2.60447]
[1724018710740,2.17480297,2653.2,2653.1,1.88414]
[1724018711130,4.05886297,2653.2,2653.0,2.60446]
[1724018711640,1.88414,2653.1,2653.0,2.60446]
[1724018711840,4.05891297,2653.2,2653.0,2.60446]
[1724018712035,4.05891297,2653.2,2653.0,0.7203]
[1724018712036,2.17480297,2653.2,2653.0,0.7203]
[1724018712232,2.17480297,2653.2,2652.9,0.00884302]
[1724018712233,1.88421,2653.0,2652.9,0.00884302]
[1724018712741,12.93565323,2653.0,2652.9,0.00884302]
[1724018712949,1.88455,2652.6,2652.1,5.4878]
[1724018713133,10.82265821,2653.0,2652.3,1.8847]
[1724018713134,1.88463,2652.5,2652.3,1.8847]
[1724018713340,3.35451096,2652.8,2652.4,1.88459]
[1724018713341,1.88449,2652.6,2652.4,1.88459]
[1724018713534,1.88447,2652.7,2652.1,6.231]
[1724018713744,3.35450096,2652.8,2652.1,8.1158]
[1724018713945,1.47012096,2652.8,2652.2,1.88478]
[1724018714143,3.2662,2652.9,2652.7,1.88436]
[1724018714144,2.85202096,2652.9,2652.7,1.88436]
[1724018714345,4.73636096,2652.9,2652.6,1.88445]
[1724018714847,4.73636096,2652.9,2652.7,1.88442]
[1724018715037,2.85202096,2652.9,2652.8,1.88435]
[1724018715349,1.47012096,2653.1,2652.8,1.88435]
[1724018715534,1.88414,2653.1,2652.9,2.55663]
[1724018715737,1.88414,2653.1,2652.9,2.55665]
[1724018715738,1.88416,2653.1,2652.9,2.55665]
[1724018716039,1.88421,2653.0,2652.9,0.6724]
[1724018716336,2.17412495,2653.2,2652.9,0.6724]
[1724018716646,1.88421,2653.0,2652.9,0.6724]
[1724018716847,1.88419,2653.1,2652.9,2.55666]
[1724018717235,1.88421,2653.0,2652.9,0.6724]
[1724018717742,2.17412495,2653.2,2652.6,1.88449]
[1724018717743,1.88438,2652.8,2652.6,1.88449]
[1724018717935,1.3975,2652.9,2652.5,0.7111]
[1724018718137,1.88449,2652.6,2652.5,0.7111]
[1724018718341,1.88449,2652.6,2652.3,1.88465]
[1724018718739,6.07542096,2652.9,2652.2,0.00566113]
[1724018718944,1.88466,2652.4,2652.2,0.00566113]
[1724018719154,0.7377,2652.5,2652.3,1.88463]
[1724018719351,0.7377,2652.5,2652.4,1.88463]
[1724018719755,0.7377,2652.5,2652.4,5.65503]
[1724018720844,0.7262,2652.7,2652.6,1.88449]
[1724018721042,0.6713,2652.9,2652.8,1.88435]
[1724018722145,0.6713,2652.9,2652.7,1.88437]
[1724018722358,0.6713,2652.9,2652.6,1.88444]
[1724018722651,2.55563,2652.9,2652.6,1.88444]
[1724018723055,2.55564,2652.9,2652.6,1.88444]
[1724018723348,0.6713,2652.9,2652.8,1.88435]
[1724018723555,0.6713,2652.9,2652.7,1.88439]
[1724018724442,0.6713,2652.9,2652.8,1.88435]
[1724018724947,2.5556,2652.9,2652.7,1.88437]
[1724018725444,2.5556,2652.9,2652.8,1.88435]
[1724018725445,0.6713,2652.9,2652.8,1.88435]
[1724018725848,0.6713,2652.9,2652.7,1.88438]
[1724018726652,2.55558,2652.9,2652.7,1.88438]
[1724018727559,0.6713,2652.9,2652.8,1.88435]
[1724018727747,0.6713,2652.9,2652.5,0.7192]
[1724018727949,2.55558,2652.9,2652.7,1.88438]
[1724018729141,0.6713,2652.9,2652.5,0.7192]
[1724018729546,2.17262096,2653.0,2652.9,1.88428]
[1724018730058,0.00370399,2653.2,2653.1,1.88414]
[1724018731057,1.47382495,2653.2,2653.1,1.88414]
[1724018731656,1.96386527,2653.2,2652.7,0.6691]
[1724018731857,3.35615956,2653.0,2652.8,1.88434]
[1724018732060,1.47191956,2652.9,2652.8,1.88434]
[1724018732361,4.08336956,2653.0,2652.7,2.55348]
[1724018732561,1.47191956,2652.9,2652.8,1.88435]
[1724018732761,1.47191956,2652.9,2652.5,0.7192]
[1724018733058,1.88432,2652.9,2652.7,1.88438]
[1724018733250,1.47191956,2652.8,2652.7,1.88438]
[1724018733656,3.35623956,2652.9,2652.7,5.65398]
[1724018733857,3.35623956,2652.9,2652.7,1.88438]
[1724018734262,1.70070908,2652.8,2652.7,1.88438]
[1724018734658,1.70070908,2652.8,2652.7,5.65398]
[1724018735263,3.84448128,2652.9,2652.7,5.65398]
[1724018735455,0.22879024,2652.8,2652.7,1.88438]
[1724018736155,1.70351027,2652.8,2652.7,5.65398]
[1724018736355,1.47472003,2652.9,2652.8,1.88435]
[1724018736550,0.98357418,2652.9,2652.8,7.5383]
[1724018736769,0.98357418,2652.9,2652.8,12.5383]
[1724018737064,0.98359315,2652.9,2652.8,12.5383]
[1724018737252,0.98364422,2653.0,2652.8,10.65395]
[1724018737458,1.47472003,2653.1,2652.9,3.2078]
[1724018737763,1.47472003,2653.1,2652.9,5.09208]
[1724018737764,0.22879808,2653.0,2652.9,5.09208]
[1724018738064,0.22879808,2653.0,2652.9,8.86168]
[1724018738454,1.70401707,2653.0,2652.9,8.86168]
[1724018739158,1.70401849,2653.0,2652.9,8.86168]
[1724018739381,1.47522041,2653.0,2652.9,8.86168]
[1724018739553,1.70401789,2653.0,2652.9,8.86168]
[1724018740868,0.22879748,2653.0,2652.9,5.09208]
[1724018741164,2.18895876,2653.0,2652.9,5.09208]
[1724018741461,2.18895876,2653.0,2652.9,8.86168]
[1724018741669,0.22879748,2653.0,2652.9,8.86168]
[1724018743671,2.45471696,2653.2,2653.0,1.88421]
[1724018743856,2.19593243,2653.1,2653.0,1.88421]
[1724018744065,0.22880442,2653.1,2653.0,1.88421]
[1724018744466,0.22880442,2653.1,2653.0,5.65381]
[1724018744768,2.19594764,2653.1,2653.0,7.05911]
[1724018744952,2.19594764,2653.1,2653.0,2.60801]
[1724018745155,2.19594764,2653.1,2653.0,6.37761]
[1724018745356,2.19594764,2653.1,2653.0,8.26182]
[1724018745357,1.70421608,2653.1,2653.0,8.26182]
[1724018745668,1.21247555,2653.1,2653.0,8.26182]
[1724018746661,1.21247555,2653.1,2653.0,6.37761]
[1724018746854,1.21247555,2653.1,2653.0,4.4934]
[1724018747063,1.70421841,2653.1,2653.0,2.60801]
[1724018747668,0.22880675,2653.1,2653.0,2.60801]
[1724018748666,0.22880675,2653.1,2653.0,5.81581]
[1724018749173,1.97084721,2653.2,2653.1,1.88414]
[1724018749473,2.19964858,2653.2,2653.1,1.88414]
[1724018749668,2.19964858,2653.2,2653.1,3.2078]
[1724018749865,2.19964858,2653.2,2653.1,5.09194]
[1724018750258,0.23250536,2653.2,2653.1,5.09194]
[1724018751363,2.19964858,2653.2,2653.1,5.09194]
[1724018752088,1.97084721,2653.2,2653.1,5.09194]
[1724018752259,2.19965033,2653.2,2653.1,5.09194]
[1724018752560,0.23250712,2653.2,2653.1,5.09194]
[1724018752761,2.19965034,2653.2,2653.1,5.09194]
[1724018753064,1.70762933,2653.2,2653.1,8.86074]
[1724018754060,1.70762933,2653.2,2653.1,5.09194]
[1724018755076,1.70777559,2653.2,2653.1,5.09194]
[1724018755373,1.70772163,2653.2,2653.1,5.09194]
[1724018755572,2.19965034,2653.2,2653.1,5.09194]
[1724018755768,1.70778601,2653.2,2653.1,5.09194]
[1724018756073,1.70778601,2653.2,2653.1,8.86074]
[1724018756372,1.70778601,2653.2,2653.1,5.09194]
[1724018756764,1.70777835,2653.2,2653.1,5.09194]
[1724018757188,1.47898288,2653.2,2653.1,5.09194]
[1724018757370,1.70778737,2653.2,2653.1,5.09194]
[1724018758767,1.70778737,2653.2,2653.1,8.86074]
[1724018760471,1.70778737,2653.2,2653.1,9.81074]
[1724018761494,0.98361433,2653.3,2653.1,17.155378]
[1724018761683,0.00566113,2653.4,2653.1,17.155378]
[1724018761684,0.00566113,2653.4,2653.3,5.65197]
[1724018761872,1.13e-06,2653.4,2653.3,13.48631466]
[1724018762075,1.13e-06,2653.4,2653.3,24.16204912]
[1724018762275,1.13e-06,2653.4,2653.3,22.19739379]
[1724018762578,0.00464037,2653.4,2653.3,23.52639379]
[1724018763165,0.00464037,2653.4,2653.3,25.49104912]
[1724018763367,3.7e-07,2653.4,2653.3,25.00518565]
[1724018763573,4.085,2653.9,2653.8,1.88364]
[1724018763770,4.78882637,2653.9,2653.8,7.37044]
[1724018763967,4.78882637,2653.9,2653.8,18.80568]
[1724018764564,4.79309502,2653.9,2653.8,18.80568]
[1724018764768,4.08926865,2653.9,2653.8,16.92204]
[1724018765474,4.08926865,2653.9,2653.8,11.13844]
[1724018765772,4.08926865,2653.9,2653.8,5.09144]
[1724018765773,0.00426865,2653.9,2653.8,5.09144]
[1724018765976,0.98760723,2653.9,2653.8,1.88364]
[1724018766181,0.00426865,2653.9,2653.8,1.88364]
[1724018766373,0.98758566,2653.9,2653.8,1.88364]
[1724018766875,0.00426865,2653.9,2653.8,8.85944]
[1724018767869,0.98758566,2653.9,2653.8,8.85944]
[1724018768371,0.00426865,2653.9,2653.8,8.85944]
[1724018769279,0.00426865,2653.9,2653.8,16.13844]
[1724018769668,0.00426865,2653.9,2653.8,19.90572]
[1724018769878,0.00426865,2653.9,2653.8,27.3693879]
[1724018770178,0.00426865,2653.9,2653.8,27.85535631]
[1724018771270,0.00426865,2653.9,2653.8,20.77537201]
[1724018771478,0.00426865,2653.9,2653.8,18.89161235]
[1724018771679,0.00426865,2653.9,2653.8,18.89189052]
[1724018771883,0.00426865,2653.9,2653.8,22.00797235]
[1724018772176,0.00426865,2653.9,2653.8,15.23966132]
[1724018772376,0.00426865,2653.9,2653.8,11.13844]
[1724018774574,0.00426865,2653.9,2653.8,18.02208]
[1724018774777,0.00426865,2653.9,2653.8,19.00809103]
[1724018775380,0.00426865,2653.9,2653.8,20.89194565]
[1724018776285,0.00426865,2653.9,2653.8,19.00809103]
[1724018776486,0.00426865,2653.9,2653.8,20.8919373]
[1724018776784,0.00426865,2653.9,2653.8,20.8919396]
[1724018777087,0.00426865,2653.9,2653.8,19.00809103]
[1724018778479,0.00426865,2653.9,2653.8,18.02208]
[1724018779088,0.00426865,2653.9,2653.8,5.4868]
[1724018779284,0.00426865,2653.9,2653.8,5.09144]
[1724018779285,1.80218566,2653.9,2653.8,5.09144]
[1724018779477,1.80298747,2653.9,2653.8,3.2078]
[1724018779780,1.80298747,2653.9,2653.8,5.09144]
[1724018780486,0.81886865,2653.9,2653.8,3.2078]
[1724018780678,0.81886865,2653.9,2653.8,5.09144]
[1724018781675,0.81886865,2653.9,2653.8,7.37044]
[1724018781881,0.81886865,2653.9,2653.8,5.4868]
[1724018782078,0.81886865,2653.9,2653.8,7.37044]
[1724018782589,1.80312439,2653.9,2653.8,7.37044]
[1724018782886,1.80312376,2653.9,2653.8,7.37044]
[1724018783085,0.81886865,2653.9,2653.8,7.37044]
[1724018783283,1.80299593,2653.9,2653.8,7.37044]
[1724018783485,0.81886865,2653.9,2653.8,7.37044]
[1724018783883,1.80300167,2653.9,2653.8,7.37044]
[1724018784083,0.81886865,2653.9,2653.8,7.37044]
[1724018784482,1.80298435,2653.9,2653.8,6.04144]
[1724018787088,0.81886865,2653.9,2653.8,6.04144]
[1724018788287,1.80298435,2653.9,2653.8,4.1578]
[1724018788481,10.53686865,2653.9,2653.6,0.00566113]
[1724018788682,1.88383,2653.6,2652.6,3.2078]
[1724018788887,0.98294843,2652.9,2652.7,0.95]
[1724018789089,4.1578,2653.1,2652.7,0.95]
[1724018789090,1.75514843,2652.8,2652.7,0.95]
[1724018789296,0.7722,2652.8,2652.7,0.95]
[1724018789698,1.75504194,2652.8,2652.7,0.95]
[1724018789887,0.7722,2652.8,2652.7,0.95]
[1724018790386,0.7722,2652.8,2652.5,1.89022113]
[1724018790387,0.7722,2652.8,2652.5,0.00566113]
[1724018790589,0.98285968,2652.7,2652.5,0.00566113]
[1724018790895,0.98285968,2652.7,2652.5,1.89021113]
[1724018791086,0.98285968,2652.7,2652.5,0.00566113]
[1724018791286,0.98285968,2652.7,2652.5,1.89022113]
[1724018791894,1.83055968,2652.7,2652.5,1.89022113]
[1724018792192,1.83055968,2652.7,2652.5,0.00566113]
[1724018792489,0.8477,2652.7,2652.5,1.89022113]
[1724018793083,1.83055968,2652.7,2652.5,0.00566113]
[1724018793284,0.8477,2652.7,2652.5,0.00566113]
[1724018793789,1.81035968,2652.9,2652.6,2.28]
[1724018793989,1.80985968,2653.1,2652.7,1.88438]
[1724018794584,1.6467,2653.1,2652.7,1.88438]
[1724018794787,2.62955968,2653.1,2652.7,1.88438]
[1724018795294,1.6467,2653.1,2652.6,4.16445]
[1724018795588,2.62955968,2653.1,2652.6,4.16445]
[1724018795785,2.62955968,2653.1,2652.5,0.00566113]
[1724018795786,1.88423,2653.0,2652.5,0.00566113]
[1724018795988,0.98285968,2652.9,2652.5,0.00566113]
[1724018796387,2.86708968,2653.0,2652.5,0.00566113]
[1724018796979,6.07504968,2652.8,2652.5,0.00566113]
[1724018797190,1.81495968,2652.7,2652.5,0.00566113]
[1724018797385,0.8034,2652.6,2652.5,0.00566113]
[1724018797595,1.5807,2652.6,2652.5,0.00566113]
[1724018798393,1.95775114,2652.6,2652.5,0.00566113]
[1724018798600,5.72735114,2652.6,2652.5,0.00566113]
[1724018799593,1.95775114,2652.6,2652.5,0.00566113]
[1724018800590,5.72735114,2652.6,2652.5,0.00566113]
[1724018800785,13.93515114,2652.6,2652.5,0.00566113]
[1724018800989,8.93515173,2652.6,2652.5,0.00566113]
[1724018801297,5.72735173,2652.6,2652.5,0.00566113]
[1724018802195,8.93515173,2652.6,2652.5,0.00566113]
[1724018803201,8.93514874,2652.6,2652.5,0.00566113]
[1724018803501,5.72734874,2652.6,2652.5,0.00566113]
[1724018805505,5.3503,2652.6,2652.5,0.00566113]
[1724018806808,0.37705973,2652.6,2652.5,0.00566113]
[1724018808000,4.17295821,2652.7,2652.5,0.00566113]
[1724018808202,0.37705973,2652.6,2652.5,0.00566113]
[1724018809204,3.2078,2652.6,2652.5,0.00566113]
[1724018809397,2.71655,2652.7,2652.5,0.00566113]
[1724018809798,7.8095,2652.7,2652.5,0.00566113]
[1724018810001,0.8321,2652.7,2652.5,0.00566113]
[1724018810895,4.0399,2652.7,2652.5,0.00566113]
[1724018811098,1.622,2652.8,2652.6,1.88449]
[1724018811306,3.2078,2653.0,2652.8,1.88432]
[1724018811705,3.2078,2653.0,2652.7,1.88438]
[1724018812101,0.8407,2652.9,2652.7,1.88438]
[1724018812497,0.8407,2652.9,2652.6,0.81]
[1724018813411,0.8407,2652.9,2652.6,2.69448]
[1724018813704,0.8407,2652.9,2652.6,0.81]
[1724018814012,0.8151,2652.8,2652.6,0.81]
[1724018814600,2.69945,2652.8,2652.5,0.00566113]
[1724018815007,3.2078,2652.6,2652.5,0.00566113]
[1724018815405,6.9774,2652.6,2652.5,0.00566113]